[Event "Titled Tuesday Blitz March 14 Early 2023"]
[White "Fiorito, Francisco"]
[Black "Rodchenkov, Sergey D."]
[WhiteFideId "180165"]
[BlackFideId "4168712"]
[WhiteElo "2341"]
[BlackElo "2277"]
[Result "0-1"]
[Round "07"]
[TimeControl "180+2"]
[Date "2023.03.14"]
[WhiteClock "0:01:31"]
[BlackClock "0:00:58"]

1. d4 {[%clk 0:03:00]}  d5 {[%clk 0:02:59]} 2. Nc3 {[%clk 0:03:00]}  Nf6 {[%clk 0:02:59]} 3. Bf4 {[%clk 0:03:00]}  c5 {[%clk 0:02:59]} 4. e3 {[%clk 0:03:00]}  cxd4 {[%clk 0:03:00]} 5. exd4 {[%clk 0:03:01]}  Bg4 {[%clk 0:03:00]} 6. f3 {[%clk 0:03:01]}  Bd7 {[%clk 0:03:01]} 7. Nb5 {[%clk 0:02:56]}  Bxb5 {[%clk 0:03:00]} 8. Bxb5+ {[%clk 0:02:55]}  Nc6 {[%clk 0:03:01]} 9. c3 {[%clk 0:02:55]}  Qb6 {[%clk 0:02:52]} 10. Qe2 {[%clk 0:02:54]}  e6 {[%clk 0:02:49]} 11. g4 {[%clk 0:02:50]}  a6 {[%clk 0:02:48]} 12. Bd3 {[%clk 0:02:50]}  Rc8 {[%clk 0:02:40]} 13. h4 {[%clk 0:02:43]}  Na5 {[%clk 0:02:35]} 14. Nh3 {[%clk 0:02:37]}  Nc4 {[%clk 0:02:31]} 15. Rh2 {[%clk 0:02:36]}  Bd6 {[%clk 0:02:26]} 16. h5 {[%clk 0:02:32]}  Bxf4 {[%clk 0:02:24]} 17. Nxf4 {[%clk 0:02:32]}  Qd6 {[%clk 0:02:19]} 18. Nh3 {[%clk 0:02:12]}  b5 {[%clk 0:02:15]} 19. f4 {[%clk 0:02:07]}  h6 {[%clk 0:01:57]} 20. Kf1 {[%clk 0:02:01]}  Nxg4 {[%clk 0:01:47]} 21. Bxc4 {[%clk 0:01:45]}  Nxh2+ {[%clk 0:01:47]} 22. Kg2 {[%clk 0:01:45]}  Rxc4 {[%clk 0:01:45]} 23. Kxh2 {[%clk 0:01:44]}  b4 {[%clk 0:01:45]} 24. Qe3 {[%clk 0:01:37]}  bxc3 {[%clk 0:01:44]} 25. bxc3 {[%clk 0:01:38]}  O-O {[%clk 0:01:30]} 26. Nf2 {[%clk 0:01:37]}  Rfc8 {[%clk 0:01:25]} 27. Rc1 {[%clk 0:01:36]}  Qa3 {[%clk 0:01:20]} 28. Nd1 {[%clk 0:01:36]}  Qxa2+ {[%clk 0:01:18]} 29. Kh3 {[%clk 0:01:36]}  a5 {[%clk 0:01:12]} 30. Qd3 {[%clk 0:01:32]}  a4 {[%clk 0:01:07]} 31. Rc2 {[%clk 0:01:32]}  Qb3 {[%clk 0:01:07]} 32. Rb2 {[%clk 0:01:31]}  Rxc3 {[%clk 0:00:59]} 33. Rxb3 {[%clk 0:01:31]}  Rxb3 {[%clk 0:00:58]} 0-1


[Site "https://www.chess.com"]

[Event "Titled Tuesday Blitz March 14 Early 2023"]
[White "Horak, Martin"]
[Black "Kim, Sergey"]
[WhiteFideId "367095"]
[BlackFideId "13700570"]
[WhiteElo "2091"]
[BlackElo "2617"]
[Result "0-1"]
[Round "07"]
[TimeControl "180+2"]
[Date "2023.03.14"]
[WhiteClock "0:01:09"]
[BlackClock "0:02:04"]

1. e4 {[%clk 0:03:00]}  e5 {[%clk 0:03:00]} 2. Nc3 {[%clk 0:03:00]}  Nf6 {[%clk 0:02:59]} 3. Bc4 {[%clk 0:03:00]}  Bc5 {[%clk 0:02:59]} 4. d3 {[%clk 0:02:53]}  Nc6 {[%clk 0:02:59]} 5. f4 {[%clk 0:02:45]}  d6 {[%clk 0:02:59]} 6. Nf3 {[%clk 0:02:44]}  Bg4 {[%clk 0:02:59]} 7. Na4 {[%clk 0:02:44]}  O-O {[%clk 0:02:57]} 8. Nxc5 {[%clk 0:02:41]}  dxc5 {[%clk 0:02:57]} 9. h3 {[%clk 0:02:42]}  Bxf3 {[%clk 0:02:57]} 10. Qxf3 {[%clk 0:02:43]}  Nd4 {[%clk 0:02:56]} 11. Qf2 {[%clk 0:02:43]}  b5 {[%clk 0:02:55]} 12. Bb3 {[%clk 0:02:13]}  c4 {[%clk 0:02:52]} 13. dxc4 {[%clk 0:02:09]}  Nxe4 {[%clk 0:02:50]} 14. Qe3 {[%clk 0:01:56]}  Qh4+ {[%clk 0:02:40]} 15. g3 {[%clk 0:01:39]}  Nxg3 {[%clk 0:02:39]} 16. Qf2 {[%clk 0:01:28]}  exf4 {[%clk 0:02:16]} 17. Bxf4 {[%clk 0:01:16]}  Rfe8+ {[%clk 0:02:08]} 18. Kd1 {[%clk 0:01:16]}  Qh5+ {[%clk 0:02:06]} 19. Kc1 {[%clk 0:01:09]}  Nde2+ {[%clk 0:02:04]} 0-1


[Site "https://www.chess.com"]

[Event "Titled Tuesday Blitz March 14 Early 2023"]
[White "Miszler, Levente"]
[Black "Manukyan, Sargis A."]
[WhiteFideId "763276"]
[BlackFideId "13303970"]
[WhiteElo "2176"]
[BlackElo "2187"]
[Result "0-1"]
[Round "07"]
[TimeControl "180+2"]
[Date "2023.03.14"]
[WhiteClock "0:01:48"]
[BlackClock "0:02:20"]

1. Nf3 {[%clk 0:03:00]}  d5 {[%clk 0:02:50]} 2. c4 {[%clk 0:03:00]}  e6 {[%clk 0:02:50]} 3. g3 {[%clk 0:03:00]}  Nf6 {[%clk 0:02:48]} 4. Bg2 {[%clk 0:03:00]}  Be7 {[%clk 0:02:48]} 5. O-O {[%clk 0:03:00]}  O-O {[%clk 0:02:48]} 6. d4 {[%clk 0:03:01]}  dxc4 {[%clk 0:02:48]} 7. Qc2 {[%clk 0:03:01]}  b5 {[%clk 0:02:46]} 8. a4 {[%clk 0:02:59]}  c6 {[%clk 0:02:44]} 9. axb5 {[%clk 0:02:58]}  cxb5 {[%clk 0:02:45]} 10. Ng5 {[%clk 0:02:58]}  h6 {[%clk 0:02:41]} 11. Nxf7 {[%clk 0:02:51]}  Rxf7 {[%clk 0:02:36]} 12. Bxa8 {[%clk 0:02:51]}  Qxd4 {[%clk 0:02:37]} 13. Be3 {[%clk 0:02:48]}  Qg4 {[%clk 0:02:36]} 14. Bf3 {[%clk 0:02:46]}  Qh3 {[%clk 0:02:36]} 15. Bg2 {[%clk 0:02:41]}  Qh5 {[%clk 0:02:35]} 16. Rxa7 {[%clk 0:02:37]}  Ng4 {[%clk 0:02:29]} 17. h3 {[%clk 0:02:34]}  Nxe3 {[%clk 0:02:28]} 18. fxe3 {[%clk 0:02:34]}  Rxf1+ {[%clk 0:02:29]} 19. Kxf1 {[%clk 0:02:32]}  Bc5 {[%clk 0:02:26]} 20. Qe4 {[%clk 0:02:21]}  Bxa7 {[%clk 0:02:24]} 21. Qf4 {[%clk 0:02:10]}  Qf5 {[%clk 0:02:23]} 22. Nc3 {[%clk 0:02:06]}  g5 {[%clk 0:02:21]} 23. Qxf5 {[%clk 0:02:06]}  exf5 {[%clk 0:02:22]} 24. Nxb5 {[%clk 0:02:07]}  Bxe3 {[%clk 0:02:23]} 25. Bd5+ {[%clk 0:02:06]}  Kg7 {[%clk 0:02:23]} 26. Bxc4 {[%clk 0:02:06]}  Ba6 {[%clk 0:02:23]} 27. Nd6 {[%clk 0:02:04]}  Bxc4 {[%clk 0:02:23]} 28. Nxc4 {[%clk 0:02:05]}  Bd4 {[%clk 0:02:24]} 29. b4 {[%clk 0:02:05]}  Nd7 {[%clk 0:02:23]} 30. e3 {[%clk 0:02:03]}  Ba7 {[%clk 0:02:20]} 31. Ke2 {[%clk 0:02:03]}  Kf6 {[%clk 0:02:21]} 32. Nd6 {[%clk 0:01:55]}  Bb8 {[%clk 0:02:20]} 33. Ne8+ {[%clk 0:01:48]}  Kf7 {[%clk 0:02:20]} 0-1


[Site "https://www.chess.com"]

[Event "Titled Tuesday Blitz March 14 Early 2023"]
[White "Jovic, Stanoje"]
[Black "Turgut, Aydin"]
[WhiteFideId "905020"]
[BlackFideId "2078791"]
[WhiteElo "2236"]
[BlackElo "2259"]
[Result "1-0"]
[Round "07"]
[TimeControl "180+2"]
[Date "2023.03.14"]
[WhiteClock "0:00:32"]
[BlackClock "0:00:02"]

1. c4 {[%clk 0:03:00]}  e6 {[%clk 0:02:59]} 2. g3 {[%clk 0:03:01]}  Nf6 {[%clk 0:02:59]} 3. Bg2 {[%clk 0:03:01]}  d5 {[%clk 0:03:00]} 4. Nf3 {[%clk 0:03:01]}  dxc4 {[%clk 0:03:01]} 5. O-O {[%clk 0:03:01]}  Nbd7 {[%clk 0:03:01]} 6. a4 {[%clk 0:03:01]}  Be7 {[%clk 0:02:55]} 7. Na3 {[%clk 0:03:00]}  O-O {[%clk 0:02:55]} 8. Nxc4 {[%clk 0:03:00]}  Nb6 {[%clk 0:02:55]} 9. b3 {[%clk 0:02:56]}  c5 {[%clk 0:02:52]} 10. Bb2 {[%clk 0:02:51]}  Nfd5 {[%clk 0:02:44]} 11. Rc1 {[%clk 0:02:42]}  Nxc4 {[%clk 0:02:40]} 12. bxc4 {[%clk 0:02:39]}  Nb4 {[%clk 0:02:40]} 13. d4 {[%clk 0:02:36]}  Bf6 {[%clk 0:02:35]} 14. Qb3 {[%clk 0:02:35]}  Qa5 {[%clk 0:02:31]} 15. Bc3 {[%clk 0:02:24]}  Bd7 {[%clk 0:02:23]} 16. Ra1 {[%clk 0:02:16]}  Bc6 {[%clk 0:02:16]} 17. Rfb1 {[%clk 0:02:14]}  b6 {[%clk 0:02:11]} 18. Bxb4 {[%clk 0:02:06]}  cxb4 {[%clk 0:02:12]} 19. Qxb4 {[%clk 0:02:06]}  Qh5 {[%clk 0:02:12]} 20. a5 {[%clk 0:02:01]}  Be4 {[%clk 0:02:08]} 21. Rb3 {[%clk 0:01:53]}  Rab8 {[%clk 0:02:08]} 22. Qd6 {[%clk 0:01:47]}  b5 {[%clk 0:01:24]} 23. Qf4 {[%clk 0:01:40]}  Bc2 {[%clk 0:01:11]} 24. g4 {[%clk 0:01:36]}  Qg6 {[%clk 0:00:56]} 25. Rxb5 {[%clk 0:01:35]}  Rbc8 {[%clk 0:00:53]} 26. c5 {[%clk 0:01:31]}  h5 {[%clk 0:00:34]} 27. h3 {[%clk 0:01:30]}  hxg4 {[%clk 0:00:34]} 28. hxg4 {[%clk 0:01:30]}  Rfd8 {[%clk 0:00:32]} 29. Rb7 {[%clk 0:01:24]}  a6 {[%clk 0:00:21]} 30. g5 {[%clk 0:01:22]}  Rxc5 {[%clk 0:00:11]} 31. dxc5 {[%clk 0:01:01]}  Bxa1 {[%clk 0:00:11]} 32. c6 {[%clk 0:01:00]}  e5 {[%clk 0:00:04]} 33. Qc4 {[%clk 0:00:47]}  Rd1+ {[%clk 0:00:03]} 34. Bf1 {[%clk 0:00:46]}  Be4 {[%clk 0:00:01]} 35. Rb8+ {[%clk 0:00:44]}  Kh7 {[%clk 0:00:02]} 36. c7 {[%clk 0:00:33]}  Bf5 {[%clk 0:00:02]} 37. Qh4+ {[%clk 0:00:32]} 1-0


[Site "https://www.chess.com"]

[Event "Titled Tuesday Blitz March 14 Early 2023"]
[White "Tarasova, Viktoriya"]
[Black "Nurmanova, Alua"]
[WhiteFideId "4175840"]
[BlackFideId "13729390"]
[WhiteElo "2182"]
[BlackElo "2253"]
[Result "0-1"]
[Round "07"]
[TimeControl "180+2"]
[Date "2023.03.14"]
[WhiteClock "0:00:43"]
[BlackClock "0:00:45"]

1. d4 {[%clk 0:03:00]}  Nf6 {[%clk 0:02:59]} 2. c4 {[%clk 0:03:00]}  g6 {[%clk 0:02:59]} 3. Nc3 {[%clk 0:02:59]}  Bg7 {[%clk 0:03:00]} 4. e4 {[%clk 0:02:58]}  d6 {[%clk 0:03:00]} 5. h3 {[%clk 0:02:59]}  O-O {[%clk 0:02:59]} 6. Be3 {[%clk 0:02:59]}  c5 {[%clk 0:02:59]} 7. d5 {[%clk 0:02:59]}  e6 {[%clk 0:02:59]} 8. Bd3 {[%clk 0:02:54]}  exd5 {[%clk 0:02:58]} 9. exd5 {[%clk 0:02:54]}  Re8 {[%clk 0:02:56]} 10. Nf3 {[%clk 0:02:54]}  Na6 {[%clk 0:02:46]} 11. O-O {[%clk 0:02:42]}  Nc7 {[%clk 0:02:30]} 12. a4 {[%clk 0:02:37]}  Na6 {[%clk 0:02:30]} 13. Qd2 {[%clk 0:02:36]}  Nb4 {[%clk 0:02:29]} 14. Bb1 {[%clk 0:02:36]}  a6 {[%clk 0:02:26]} 15. Re1 {[%clk 0:02:34]}  Bd7 {[%clk 0:02:24]} 16. Bf4 {[%clk 0:02:31]}  Qc7 {[%clk 0:02:22]} 17. Be3 {[%clk 0:02:14]}  Rab8 {[%clk 0:02:17]} 18. a5 {[%clk 0:01:59]}  b5 {[%clk 0:02:16]} 19. axb6 {[%clk 0:01:59]}  Qxb6 {[%clk 0:02:17]} 20. b3 {[%clk 0:01:50]}  a5 {[%clk 0:02:12]} 21. Ra3 {[%clk 0:01:49]}  Qc7 {[%clk 0:02:01]} 22. Bf4 {[%clk 0:01:35]}  Rxe1+ {[%clk 0:02:00]} 23. Qxe1 {[%clk 0:01:35]}  Re8 {[%clk 0:02:01]} 24. Qd2 {[%clk 0:01:36]}  Nh5 {[%clk 0:01:57]} 25. Be3 {[%clk 0:01:33]}  Ra8 {[%clk 0:01:28]} 26. Na2 {[%clk 0:01:30]}  Nf6 {[%clk 0:01:20]} 27. Nc1 {[%clk 0:01:13]}  a4 {[%clk 0:01:15]} 28. bxa4 {[%clk 0:01:12]}  Rxa4 {[%clk 0:01:16]} 29. Rxa4 {[%clk 0:01:12]}  Bxa4 {[%clk 0:01:17]} 30. Bf4 {[%clk 0:01:04]}  Nd7 {[%clk 0:01:08]} 31. Ne2 {[%clk 0:01:03]}  Bb3 {[%clk 0:01:00]} 32. Qe3 {[%clk 0:00:45]}  Bxc4 {[%clk 0:00:58]} 33. Qe8+ {[%clk 0:00:45]}  Nf8 {[%clk 0:00:53]} 34. Ng3 {[%clk 0:00:46]}  Nxd5 {[%clk 0:00:50]} 35. Ne4 {[%clk 0:00:43]}  Nxf4 {[%clk 0:00:45]} 0-1


[Site "https://www.chess.com"]

[Event "Titled Tuesday Blitz March 14 Early 2023"]
[White "Buscar, Michael"]
[Black "Domingo Nunez, Alejandro"]
[WhiteFideId "2603616"]
[BlackFideId "22245561"]
[WhiteElo "2010"]
[BlackElo "2230"]
[Result "0-1"]
[Round "07"]
[TimeControl "180+2"]
[Date "2023.03.14"]
[WhiteClock "0:00:30"]
[BlackClock "0:01:03"]

1. d4 {[%clk 0:02:54]}  g6 {[%clk 0:03:00]} 2. c4 {[%clk 0:02:52]}  Bg7 {[%clk 0:03:01]} 3. Nc3 {[%clk 0:02:52]}  d6 {[%clk 0:03:01]} 4. Nf3 {[%clk 0:02:52]}  Bf6 {[%clk 0:03:01]} 5. e4 {[%clk 0:02:49]}  Bg7 {[%clk 0:02:58]} 6. h3 {[%clk 0:02:48]}  Nf6 {[%clk 0:02:58]} 7. Be2 {[%clk 0:02:45]}  O-O {[%clk 0:02:58]} 8. Be3 {[%clk 0:02:45]}  Nbd7 {[%clk 0:02:55]} 9. Qd2 {[%clk 0:02:43]}  e5 {[%clk 0:02:54]} 10. d5 {[%clk 0:02:42]}  Nh5 {[%clk 0:02:54]} 11. g4 {[%clk 0:02:40]}  Nf4 {[%clk 0:02:54]} 12. Bxf4 {[%clk 0:02:40]}  exf4 {[%clk 0:02:55]} 13. Qxf4 {[%clk 0:02:40]}  Re8 {[%clk 0:02:55]} 14. O-O {[%clk 0:02:36]}  Nc5 {[%clk 0:02:53]} 15. Nd2 {[%clk 0:02:32]}  Qh4 {[%clk 0:02:43]} 16. Kg2 {[%clk 0:02:26]}  Bh6 {[%clk 0:02:43]} 17. Nf3 {[%clk 0:02:24]}  Qxh3+ {[%clk 0:02:37]} 18. Kxh3 {[%clk 0:02:22]}  Bxf4 {[%clk 0:02:38]} 19. e5 {[%clk 0:02:12]}  dxe5 {[%clk 0:02:15]} 20. b4 {[%clk 0:02:00]}  Na6 {[%clk 0:02:07]} 21. Ne4 {[%clk 0:01:52]}  Kg7 {[%clk 0:02:04]} 22. a3 {[%clk 0:01:44]}  f5 {[%clk 0:02:04]} 23. Neg5 {[%clk 0:01:03]}  fxg4+ {[%clk 0:02:02]} 24. Kg2 {[%clk 0:01:04]}  gxf3+ {[%clk 0:02:02]} 25. Nxf3 {[%clk 0:01:05]}  Bg4 {[%clk 0:01:52]} 26. Rh1 {[%clk 0:01:02]}  Rad8 {[%clk 0:01:45]} 27. Nd4 {[%clk 0:01:01]}  Bxe2 {[%clk 0:01:32]} 28. Nxe2 {[%clk 0:00:59]}  c6 {[%clk 0:01:31]} 29. dxc6 {[%clk 0:00:54]}  bxc6 {[%clk 0:01:32]} 30. Rhd1 {[%clk 0:00:51]}  Nc7 {[%clk 0:01:28]} 31. Nc3 {[%clk 0:00:43]}  Ne6 {[%clk 0:01:23]} 32. Ne4 {[%clk 0:00:38]}  Rd4 {[%clk 0:01:22]} 33. Nd6 {[%clk 0:00:37]}  Rd8 {[%clk 0:01:18]} 34. c5 {[%clk 0:00:37]}  Ng5 {[%clk 0:01:06]} 35. Rxd4 {[%clk 0:00:31]}  exd4 {[%clk 0:01:06]} 36. Rd1 {[%clk 0:00:30]}  Bxd6 {[%clk 0:01:06]} 37. cxd6 {[%clk 0:00:29]}  Rxd6 {[%clk 0:01:06]} 38. Rd3 {[%clk 0:00:29]}  Kf6 {[%clk 0:01:04]} 39. Kg3 {[%clk 0:00:30]}  Kf5 {[%clk 0:01:03]} 0-1


[Site "https://www.chess.com"]

[Event "Titled Tuesday Blitz March 14 Early 2023"]
[White "Lopez Mulet, Inigo"]
[Black "Perez Rodriguez, Jennifer"]
[WhiteFideId "22235620"]
[BlackFideId "3507831"]
[WhiteElo "2289"]
[BlackElo "2170"]
[Result "1-0"]
[Round "07"]
[TimeControl "180+2"]
[Date "2023.03.14"]
[WhiteClock "0:02:05"]
[BlackClock "0:01:02"]

1. e4 {[%clk 0:03:00]}  e5 {[%clk 0:02:59]} 2. Nf3 {[%clk 0:03:00]}  Nc6 {[%clk 0:03:00]} 3. Bc4 {[%clk 0:03:01]}  Bc5 {[%clk 0:03:00]} 4. O-O {[%clk 0:03:01]}  Nf6 {[%clk 0:02:59]} 5. c3 {[%clk 0:03:00]}  Nxe4 {[%clk 0:02:58]} 6. d4 {[%clk 0:02:55]}  exd4 {[%clk 0:02:58]} 7. cxd4 {[%clk 0:02:52]}  Bb6 {[%clk 0:02:49]} 8. d5 {[%clk 0:02:51]}  Ne7 {[%clk 0:02:45]} 9. Qe2 {[%clk 0:02:43]}  Nd6 {[%clk 0:02:36]} 10. Bd3 {[%clk 0:02:24]}  f6 {[%clk 0:01:46]} 11. Nc3 {[%clk 0:02:11]}  O-O {[%clk 0:01:40]} 12. Nh4 {[%clk 0:02:09]}  f5 {[%clk 0:01:09]} 13. Bg5 {[%clk 0:02:06]}  Rf7 {[%clk 0:01:02]} 14. Rae1 {[%clk 0:02:05]} 1-0


[Site "https://www.chess.com"]

[Event "Titled Tuesday Blitz March 14 Early 2023"]
[White "Tan, Zhongyi"]
[Black "Karas, Marek"]
[WhiteFideId "8603642"]
[BlackFideId "14928558"]
[WhiteElo "2519"]
[BlackElo "2233"]
[Result "1-0"]
[Round "07"]
[TimeControl "180+2"]
[Date "2023.03.14"]
[WhiteClock "0:00:08"]
[BlackClock "0:00:04"]

1. d4 {[%clk 0:03:00]}  e6 {[%clk 0:03:00]} 2. c4 {[%clk 0:03:00]}  d5 {[%clk 0:03:00]} 3. Nc3 {[%clk 0:03:00]}  Nf6 {[%clk 0:03:01]} 4. cxd5 {[%clk 0:03:00]}  Nxd5 {[%clk 0:03:01]} 5. e4 {[%clk 0:03:00]}  Nxc3 {[%clk 0:03:02]} 6. bxc3 {[%clk 0:03:01]}  c5 {[%clk 0:03:02]} 7. Nf3 {[%clk 0:03:01]}  cxd4 {[%clk 0:03:03]} 8. cxd4 {[%clk 0:03:01]}  Bb4+ {[%clk 0:03:03]} 9. Bd2 {[%clk 0:03:01]}  Bxd2+ {[%clk 0:03:04]} 10. Qxd2 {[%clk 0:03:01]}  O-O {[%clk 0:03:04]} 11. Bc4 {[%clk 0:03:02]}  Nd7 {[%clk 0:03:05]} 12. O-O {[%clk 0:03:02]}  b6 {[%clk 0:03:05]} 13. Rad1 {[%clk 0:03:00]}  Bb7 {[%clk 0:03:06]} 14. Rfe1 {[%clk 0:03:00]}  Rc8 {[%clk 0:03:03]} 15. Bb3 {[%clk 0:03:00]}  h6 {[%clk 0:03:02]} 16. Re3 {[%clk 0:02:50]}  Nf6 {[%clk 0:03:01]} 17. Qe1 {[%clk 0:02:44]}  Qc7 {[%clk 0:02:53]} 18. h3 {[%clk 0:02:43]}  Rfe8 {[%clk 0:02:47]} 19. d5 {[%clk 0:02:35]}  exd5 {[%clk 0:02:46]} 20. e5 {[%clk 0:02:35]}  Ne4 {[%clk 0:02:40]} 21. Bxd5 {[%clk 0:02:27]}  Bxd5 {[%clk 0:02:41]} 22. Rxd5 {[%clk 0:02:27]}  Nc5 {[%clk 0:02:40]} 23. Nd4 {[%clk 0:02:17]}  Rcd8 {[%clk 0:02:38]} 24. Nb5 {[%clk 0:02:14]}  Qc6 {[%clk 0:02:23]} 25. Rxd8 {[%clk 0:02:14]}  Rxd8 {[%clk 0:02:23]} 26. Nd6 {[%clk 0:02:13]}  Ne6 {[%clk 0:02:13]} 27. Rg3 {[%clk 0:02:07]}  Qc2 {[%clk 0:02:06]} 28. Qe3 {[%clk 0:02:02]}  Kf8 {[%clk 0:01:42]} 29. Qf3 {[%clk 0:01:48]}  Qc7 {[%clk 0:01:34]} 30. Qf5 {[%clk 0:01:35]}  Kg8 {[%clk 0:01:18]} 31. Kh2 {[%clk 0:01:25]}  Rxd6 {[%clk 0:01:12]} 32. exd6 {[%clk 0:01:24]}  Qxd6 {[%clk 0:01:12]} 33. Qd3 {[%clk 0:01:13]}  Qc7 {[%clk 0:01:09]} 34. Kg1 {[%clk 0:01:09]}  Qc1+ {[%clk 0:01:07]} 35. Qf1 {[%clk 0:01:09]}  Qc2 {[%clk 0:01:03]} 36. a3 {[%clk 0:01:07]}  Qa4 {[%clk 0:00:59]} 37. Rc3 {[%clk 0:01:02]}  Qd7 {[%clk 0:00:51]} 38. Qd3 {[%clk 0:01:01]}  Qb7 {[%clk 0:00:45]} 39. Qd6 {[%clk 0:00:55]}  Nc5 {[%clk 0:00:42]} 40. Re3 {[%clk 0:00:45]}  Qa6 {[%clk 0:00:39]} 41. Qd8+ {[%clk 0:00:31]}  Kh7 {[%clk 0:00:39]} 42. Qc7 {[%clk 0:00:25]}  Qc4 {[%clk 0:00:21]} 43. Qxa7 {[%clk 0:00:25]}  b5 {[%clk 0:00:19]} 44. Qe7 {[%clk 0:00:24]}  g6 {[%clk 0:00:12]} 45. Qf6 {[%clk 0:00:21]}  Ne4 {[%clk 0:00:05]} 46. Qf4 {[%clk 0:00:17]}  Qc1+ {[%clk 0:00:06]} 47. Kh2 {[%clk 0:00:17]}  Ng5 {[%clk 0:00:06]} 48. h4 {[%clk 0:00:08]}  Ne6 {[%clk 0:00:06]} 49. Qxf7+ {[%clk 0:00:08]}  Ng7 {[%clk 0:00:07]} 50. Re7 {[%clk 0:00:07]}  Qc3 {[%clk 0:00:05]} 51. g3 {[%clk 0:00:05]}  Qd4 {[%clk 0:00:05]} 52. Qxg7+ {[%clk 0:00:04]}  Qxg7 {[%clk 0:00:04]} 53. Rxg7+ {[%clk 0:00:05]}  Kxg7 {[%clk 0:00:05]} 54. Kg2 {[%clk 0:00:06]}  Kf6 {[%clk 0:00:06]} 55. Kf3 {[%clk 0:00:06]}  Ke5 {[%clk 0:00:06]} 56. Ke3 {[%clk 0:00:07]}  Kd5 {[%clk 0:00:04]} 57. Kd3 {[%clk 0:00:07]}  h5 {[%clk 0:00:03]} 58. f3 {[%clk 0:00:07]}  Kc5 {[%clk 0:00:03]} 59. g4 {[%clk 0:00:07]}  Kd5 {[%clk 0:00:03]} 60. gxh5 {[%clk 0:00:07]}  gxh5 {[%clk 0:00:04]} 61. f4 {[%clk 0:00:07]}  Kc5 {[%clk 0:00:04]} 62. Ke4 {[%clk 0:00:08]}  Kc4 {[%clk 0:00:03]} 63. f5 {[%clk 0:00:08]}  Kb3 {[%clk 0:00:04]} 64. f6 {[%clk 0:00:08]} 1-0


[Site "https://www.chess.com"]

[Event "Titled Tuesday Blitz March 14 Early 2023"]
[White "Rom, Jasper"]
[Black "Shuvalov, Evgenij"]
[WhiteFideId "2023733"]
[BlackFideId "4187237"]
[WhiteElo "2233"]
[BlackElo "2080"]
[Result "1-0"]
[Round "07"]
[TimeControl "180+2"]
[Date "2023.03.14"]
[WhiteClock "0:00:05"]
[BlackClock "0:00:13"]

1. e4 {[%clk 0:02:58]}  e6 {[%clk 0:02:59]} 2. d4 {[%clk 0:02:58]}  d5 {[%clk 0:02:59]} 3. Bd3 {[%clk 0:02:58]}  c5 {[%clk 0:02:59]} 4. exd5 {[%clk 0:02:58]}  exd5 {[%clk 0:02:59]} 5. Nf3 {[%clk 0:02:57]}  c4 {[%clk 0:03:00]} 6. Be2 {[%clk 0:02:57]}  Nf6 {[%clk 0:02:59]} 7. b3 {[%clk 0:02:55]}  cxb3 {[%clk 0:02:59]} 8. axb3 {[%clk 0:02:56]}  Be7 {[%clk 0:02:59]} 9. O-O {[%clk 0:02:56]}  O-O {[%clk 0:02:59]} 10. Bd3 {[%clk 0:02:45]}  Nc6 {[%clk 0:02:57]} 11. c3 {[%clk 0:02:45]}  Bg4 {[%clk 0:02:57]} 12. h3 {[%clk 0:02:43]}  Bh5 {[%clk 0:02:56]} 13. Be3 {[%clk 0:02:39]}  Ne4 {[%clk 0:02:50]} 14. c4 {[%clk 0:02:22]}  Nb4 {[%clk 0:02:46]} 15. Be2 {[%clk 0:02:21]}  Re8 {[%clk 0:02:31]} 16. Nfd2 {[%clk 0:02:04]}  Bxe2 {[%clk 0:02:29]} 17. Qxe2 {[%clk 0:02:04]}  Bf6 {[%clk 0:02:19]} 18. Nxe4 {[%clk 0:01:53]}  dxe4 {[%clk 0:02:18]} 19. Nc3 {[%clk 0:01:38]}  Nc6 {[%clk 0:01:15]} 20. Rfd1 {[%clk 0:01:33]}  Qb6 {[%clk 0:00:51]} 21. Nd5 {[%clk 0:01:18]}  Qd8 {[%clk 0:00:51]} 22. Qg4 {[%clk 0:01:04]}  a6 {[%clk 0:00:47]} 23. g3 {[%clk 0:00:52]}  Kh8 {[%clk 0:00:27]} 24. h4 {[%clk 0:00:52]}  h6 {[%clk 0:00:27]} 25. Qf5 {[%clk 0:00:50]}  Re6 {[%clk 0:00:22]} 26. Rac1 {[%clk 0:00:43]}  Rc8 {[%clk 0:00:21]} 27. Nf4 {[%clk 0:00:41]}  Re8 {[%clk 0:00:20]} 28. Nh5 {[%clk 0:00:38]}  Re6 {[%clk 0:00:17]} 29. d5 {[%clk 0:00:34]}  Rd6 {[%clk 0:00:16]} 30. Bf4 {[%clk 0:00:17]}  Ne7 {[%clk 0:00:16]} 31. Qg4 {[%clk 0:00:16]}  Rb6 {[%clk 0:00:16]} 32. d6 {[%clk 0:00:14]}  Ng8 {[%clk 0:00:15]} 33. Be3 {[%clk 0:00:09]}  Rxb3 {[%clk 0:00:15]} 34. Bd4 {[%clk 0:00:09]}  Bxd4 {[%clk 0:00:14]} 35. Rxd4 {[%clk 0:00:09]}  g6 {[%clk 0:00:14]} 36. Nf4 {[%clk 0:00:07]}  Qf6 {[%clk 0:00:15]} 37. Rcd1 {[%clk 0:00:07]}  Rd8 {[%clk 0:00:15]} 38. d7 {[%clk 0:00:06]}  Rd3 {[%clk 0:00:14]} 39. Nxd3 {[%clk 0:00:06]}  exd3 {[%clk 0:00:15]} 40. R4xd3 {[%clk 0:00:06]}  Ne7 {[%clk 0:00:16]} 41. Qe2 {[%clk 0:00:05]}  Nf5 {[%clk 0:00:16]} 42. Qd2 {[%clk 0:00:05]}  Kg7 {[%clk 0:00:16]} 43. Qf4 {[%clk 0:00:05]}  Qe7 {[%clk 0:00:16]} 44. Qc7 {[%clk 0:00:04]}  b5 {[%clk 0:00:14]} 45. c5 {[%clk 0:00:04]}  b4 {[%clk 0:00:14]} 46. c6 {[%clk 0:00:04]}  b3 {[%clk 0:00:14]} 47. Qb6 {[%clk 0:00:05]}  b2 {[%clk 0:00:13]} 48. Qxb2+ {[%clk 0:00:05]}  Kh7 {[%clk 0:00:12]} 49. c7 {[%clk 0:00:05]}  Ra8 {[%clk 0:00:12]} 50. d8=Q {[%clk 0:00:05]}  Rxd8 {[%clk 0:00:12]} 51. cxd8=Q {[%clk 0:00:06]}  Qxd8 {[%clk 0:00:10]} 52. Rxd8 {[%clk 0:00:07]}  g5 {[%clk 0:00:10]} 53. Qh8+ {[%clk 0:00:06]}  Kg6 {[%clk 0:00:11]} 54. Qg8+ {[%clk 0:00:06]}  Kh5 {[%clk 0:00:12]} 55. Qxf7+ {[%clk 0:00:06]}  Kg4 {[%clk 0:00:12]} 56. R8d4+ {[%clk 0:00:06]}  Kh3 {[%clk 0:00:13]} 57. Qxf5+ {[%clk 0:00:05]}  g4 {[%clk 0:00:13]} 58. Qxg4# {[%clk 0:00:05]} 1-0


[Site "https://www.chess.com"]